[Event "FIDE World School-ch O-13 2025"]
[Site "Vrnjacka Banja"]
[Date "2025.03.28"]
[Round "9.5"]
[White "Kudrin, Ivan"]
[Black "Kuzmin, Sevastian"]
[Result "1/2-1/2"]
[Annotator "NA"]
[ECO "C89"]
[WhiteElo "1977"]
[BlackElo "1756"]
[PlyCount "76"]
[EventDate "2025.03.19"]
[EventType "swiss"]
[EventCountry "SRB"]
[SourceTitle "playchess.com"]
[Source "ChessBase"]
[SourceQuality "1"]
[TimeControl "5400+30"]

1. e4 {[%emt 0:00:02]} e5 {[%emt 0:00:05]} 2. Nf3 {[%emt 0:00:04]} Nc6 {[%emt 0:00:06]} 3. Bb5 {[%emt 0:00:21]} a6 {[%emt 0:00:07]} 4. Ba4 {[%emt 0:00:03]} Nf6 {[%emt 0:00:08]} 5. O-O {[%emt 0:00:06]} Be7 {[%emt 0:00:04]} 6. Re1 {[%emt 0:00:40]} b5 {[%emt 0:00:11]} 7. Bb3 {[%emt 0:00:04]} O-O {[%emt 0:01:56]} 8. c3 {[%emt 0:02:06]} d5 {[%emt 0:10:00]} 9. exd5 {[%emt 0:07:18]} Nxd5 {[%emt 0:00:58]} 10. d4 {[%emt 0:06:31]} exd4 {[%emt 0:01:04]} 11. Nxd4 {[%emt 0:01:58]} Nxd4 {[%emt 0:01:03]} 12. cxd4 {[%emt 0:00:12]} Bb7 {[%emt 0:03:27]} 13. Nc3 {[%emt 0:03:42]} Nxc3 {[%emt 0:07:39]} 14. bxc3 {[%emt 0:00:08]} Bd6 {[%emt 0:00:18]} 15. Qg4 {[%emt 0:07:21]} Qf6 {[%emt 0:09:05]} 16. Bc2 {[%emt 0:05:01]} h6 $1 {[%emt 0:05:00]} 17. Be3 {[%emt 0:04:20]} Rae8 $11 {[%emt 0:57:49]} 18. Bd3 {[%emt 0:18:16]} Bd5 {[%emt 0:00:00]} 19. a4 {[%emt 0:07:09]} c6 {[%emt 0:00:00]} 20. axb5 {[%emt 0:00:36]} axb5 {[%emt 0:00:00]} 21. f3 {[%emt 0:06:27]} Bc7 {[%emt 0:00:00]} 22. Bd2 {[%emt 0:12:39]} Qd6 {[%emt 0:00:00]} 23. Qh5 {[%emt 0:02:41]} Re6 {[%emt 0:00:04]} 24. Rxe6 {[%emt 0:02:34]} Qxe6 {[%emt 0:00:36]} 25. Re1 {[%emt 0:00:20]} Qf6 {[%emt 0:00:34]} 26. Qg4 {[%emt 0:01:32]} Kh8 {[%emt 0:01:26]} 27. f4 {[%emt 0:00:58]} b4 {[%emt 0:00:24]} 28. f5 {[%emt 0:02:15]} bxc3 {[%emt 0:00:50]} 29. Bxc3 {[%emt 0:00:06]} Qd6 {[%emt 0:00:18]} 30. Qh3 {[%emt 0:01:11]} Bb6 {[%emt 0:01:07]} 31. Kh1 {[%emt 0:04:38]} f6 {[%emt 0:00:19]} 32. Qe3 {[%emt 0:01:33]} Bc7 {[%emt 0:00:19]} 33. Qh3 {[%emt 0:00:45]} Qf4 {[%emt 0:00:33]} 34. Rf1 {[%emt 0:01:09]} Qd6 {[%emt 0:00:34]} 35. Bd2 {[%emt 0:00:35]} c5 {[%emt 0:01:20]} 36. dxc5 {[%emt 0:01:54]} Qxc5 {[%emt 0:01:06]} 37. Rc1 {[%emt 0:00:15]} Qd6 {[%emt 0:00:00]} 38. Bxh6 {[%emt 0:02:00]} gxh6 {[%emt 0:00:00]} 1/2-1/2

[Event "FIDE World School-ch O-13 2025"]
[Site "Vrnjacka Banja"]
[Date "2025.03.28"]
[Round "9.6"]
[White "Ilcic, Aleksa"]
[Black "Samarth Sreeni Warrier"]
[Result "1/2-1/2"]
[Annotator "NA RC"]
[ECO "D35"]
[WhiteElo "1822"]
[BlackElo "1913"]
[PlyCount "87"]
[EventDate "2025.03.19"]
[EventType "swiss"]
[EventCountry "SRB"]
[SourceTitle "playchess.com"]
[Source "ChessBase"]
[SourceQuality "1"]
[TimeControl "5400+30"]

1. d4 {[%emt 0:00:02]} Nf6 {[%emt 0:02:41]} 2. c4 {[%emt 0:00:14]} e6 {[%emt 0:00:41]} 3. Nf3 {[%emt 0:00:08]} d5 {[%emt 0:00:09]} 4. cxd5 {[%emt 0:00:08]} exd5 {[%emt 0:00:05]} 5. Nc3 {[%emt 0:00:11]} c6 {[%emt 0:00:10]} 6. Bg5 {[%emt 0:00:18]} Be7 {[%emt 0:02:46]} 7. e3 {[%emt 0:00:12]} Bf5 {[%emt 0:02:06]} 8. Bd3 {[%emt 0:00:25]} Bxd3 {[%emt 0:00:34]} 9. Qxd3 {[%emt 0:00:09]} O-O {[%emt 0:00:42]} 10. Bxf6 {[%emt 0:00:56]} Bxf6 {[%emt 0:00:10]} 11. O-O {[%emt 0:00:25]} Nd7 {[%emt 0:05:32] D35: Queen's Gambit Declined: Exchange Variation.} 12. Rfe1 {[%emt 0:02:08]} g6 {[%emt 0:03:24]} 13. Rad1 {[%emt 0:05:53]} Bg7 {[%emt 0:05:40]} 14. e4 {[%emt 0:10:40]} dxe4 {[%emt 0:00:31]} 15. Qxe4 {[%emt 0:01:29]} Nf6 {[%emt 0:00:41]} 16. Qc2 {[%emt 0:02:04]} Nd5 {[%emt 0:15:11]} 17. Qb3 {[%emt 0:01:10]} Rb8 {[%emt 0:07:39]} 18. Nxd5 {[%emt 0:01:39]} Qxd5 {[%emt 0:03:33]} 19. Qxd5 {[%emt 0:00:58]} cxd5 {[%emt 0:00:04]} 20. Rc1 {[%emt 0:00:20]} Rbc8 {[%emt 0:00:42]} 21. Kf1 {[%emt 0:01:24]} Rfd8 {[%emt 0:01:37]} 22. Ke2 {[%emt 0:01:40]} Kf8 $11 {[%emt 0:00:45]} 23. Kd3 {[%emt 0:00:20]} Bh6 {[%emt 0:07:23]} 24. Rc3 {[%emt 0:03:59]} a6 {[%emt 0:06:08]} 25. Ne5 {[%emt 0:01:28]} Rxc3+ {[%emt 0:00:34]} 26. bxc3 {[%emt 0:00:13]} b5 {[%emt 0:01:12]} 27. a4 {[%emt 0:00:54]} bxa4 {[%emt 0:04:36]} 28. Ra1 {[%emt 0:00:37]} Rd6 {[%emt 0:01:59]} 29. Rxa4 {[%emt 0:01:18]} Bg7 {[%emt 0:08:20]} 30. Rb4 {[%emt 0:02:57]} Bxe5 {[%emt 0:00:38]} 31. dxe5 {[%emt 0:00:09]} Rc6 {[%emt 0:00:20]} 32. Rb7 {[%emt 0:02:22]} Ke8 {[%emt 0:03:24]} 33. Ra7 {[%emt 0:03:30]} Rc4 {[%emt 0:03:26]} 34. g3 {[%emt 0:09:12]} Ra4 {[%emt 0:01:34]} 35. Rc7 {[%emt 0:01:30]} Ra2 {[%emt 0:00:21]} 36. Ke3 {[%emt 0:00:18]} Rc2 {[%emt 0:00:30]} 37. Rc5 {[%emt 0:00:30]} Ke7 {[%emt 0:00:30]} 38. Rxd5 {[%emt 0:00:30]} Rxc3+ {[%emt 0:00:30]} 39. Kf4 {[%emt 0:00:30]} Rc2 {[%emt 0:13:12]} 40. f3 {[%emt 0:07:32]} Ra2 {[%emt 0:00:00]} 41. h4 {[%emt 0:00:16]} h6 {[%emt 0:00:00]} 42. h5 {[%emt 0:01:34]} Ra4+ {[%emt 0:00:00]} 43. Ke3 {[%emt 0:00:23]} gxh5 {[%emt 0:00:00]} 44. Rd6 {[%emt 0:00:39]} 1/2-1/2

[Event "FIDE World School-ch O-13 2025"]
[Site "Vrnjacka Banja"]
[Date "2025.03.28"]
[Round "9.7"]
[White "Jayasooriya, Ruvin Sandharu"]
[Black "Lee, Tsuen Jin Aiesec"]
[Result "1-0"]
[Annotator "NA RC"]
[ECO "E04"]
[WhiteElo "1830"]
[BlackElo "1693"]
[PlyCount "85"]
[EventDate "2025.03.19"]
[EventType "swiss"]
[EventCountry "SRB"]
[SourceTitle "playchess.com"]
[Source "ChessBase"]
[SourceQuality "1"]
[TimeControl "5400+30"]

1. d4 {[%emt 0:00:13]} e6 {[%emt 0:00:04]} 2. c4 {[%emt 0:00:14]} d5 {[%emt 0:00:04]} 3. Nf3 {[%emt 0:00:09]} Nf6 {[%emt 0:00:03]} 4. g3 {[%emt 0:00:10]} dxc4 {[%emt 0:00:04]} 5. Bg2 {[%emt 0:00:09]} a6 {[%emt 0:00:04]} 6. O-O {[%emt 0:00:55]} Nc6 {[%emt 0:00:04]} 7. a4 {[%emt 0:00:42]} Rb8 {[%emt 0:00:48]} 8. b3 {[%emt 0:00:10]} cxb3 {[%emt 0:01:42]} 9. Bb2 {[%emt 0:00:07]} Be7 {[%emt 0:02:48]} 10. Nbd2 {[%emt 0:01:15]} O-O {[%emt 0:00:50]} 11. Qxb3 {[%emt 0:00:56]} b5 {[%emt 0:09:04]} 12. Rfc1 {[%emt 0:12:06]} Bb7 {[%emt 0:01:34]} 13. axb5 {[%emt 0:00:38]} axb5 {[%emt 0:00:27]} 14. e3 {[%emt 0:05:50]} Re8 {[%emt 0:20:20]} 15. Ne1 {[%emt 0:03:56]} Nd5 {[%emt 1:00:04]} 16. Nd3 {[%emt 0:04:34]} Bf8 {[%emt 0:00:00]} 17. Ne4 {[%emt 0:03:26]} Ncb4 {[%emt 0:00:00]} 18. Ndc5 {[%emt 0:02:05]} Bc8 {[%emt 0:00:00]} 19. Nd2 {[%emt 0:02:24]} f5 {[%emt 0:00:00]} 20. Ba3 {[%emt 0:05:41]} Nc6 {[%emt 0:00:00]} 21. Nxe6 {[%emt 0:06:51]} Bxe6 {[%emt 0:00:00]} 22. Rxc6 {[%emt 0:00:05]} Bf7 {[%emt 0:00:00]} 23. Qd3 {[%emt 0:02:25]} Ra8 {[%emt 0:04:00]} 24. Bb2 {[%emt 0:01:53]} Rxa1+ {[%emt 0:00:00]} 25. Bxa1 {[%emt 0:00:21]} Nb4 {[%emt 0:00:00]} 26. Qxf5 {[%emt 0:00:34]} Nxc6 {[%emt 0:00:00]} 27. Bxc6 {[%emt 0:00:06]} Re6 {[%emt 0:00:00]} 28. Qxb5 {[%emt 0:01:47]} Kh8 {[%emt 0:00:00]} 29. Nc4 {[%emt 0:02:17]} Bg8 {[%emt 0:01:35]} 30. e4 {[%emt 0:01:39]} Qf6 {[%emt 0:00:29]} 31. Ne5 {[%emt 0:01:26]} h6 {[%emt 0:00:59]} 32. f4 {[%emt 0:01:25]} Qd8 {[%emt 0:00:39]} 33. f5 {[%emt 0:01:43]} Rf6 {[%emt 0:00:38]} 34. Ng6+ {[%emt 0:02:10]} Kh7 {[%emt 0:00:04]} 35. d5 {[%emt 0:01:22]} Rf7 {[%emt 0:00:47]} 36. Be8 {[%emt 0:01:32]} Bc5+ {[%emt 0:00:34]} 37. Kg2 {[%emt 0:00:31]} Qa8 {[%emt 0:00:30]} 38. Bxf7 {[%emt 0:00:48]} Qa2+ {[%emt 0:00:25]} 39. Qb2 {[%emt 0:00:30]} Qxb2+ {[%emt 0:00:16]} 40. Bxb2 {[%emt 0:00:08]} Bxf7 {[%emt 0:00:03]} 41. Nf4 {[%emt 0:00:23]} Kg8 {[%emt 0:00:06]} 42. Be5 {[%emt 0:00:37]} Bb6 {[%emt 0:00:21]} 43. Ne6 {[%emt 0:00:45]} 1-0

[Event "FIDE World School-ch O-13 2025"]
[Site "Vrnjacka Banja"]
[Date "2025.03.28"]
[Round "9.8"]
[White "Simiyu Jadon"]
[Black "Petroff, Vlad"]
[Result "1-0"]
[Annotator "NA RC"]
[ECO "B31"]
[WhiteElo "1937"]
[BlackElo "2030"]
[PlyCount "127"]
[EventDate "2025.03.19"]
[EventType "swiss"]
[EventCountry "SRB"]
[SourceTitle "playchess.com"]
[Source "ChessBase"]
[SourceQuality "1"]
[TimeControl "5400+30"]

1. e4 {[%emt 0:02:55]} c5 {[%emt 0:00:13]} 2. Nf3 {[%emt 0:00:07]} Nc6 {[%emt 0:00:08]} 3. Bb5 {[%emt 0:00:07]} g6 {[%emt 0:00:42]} 4. Bxc6 {[%emt 0:00:09]} bxc6 {[%emt 0:00:18]} 5. O-O {[%emt 0:00:13]} Bg7 {[%emt 0:01:18]} 6. Re1 {[%emt 0:03:36]} Nh6 {[%emt 0:03:02]} 7. Nc3 {[%emt 0:03:00]} O-O {[%emt 0:03:43]} 8. d4 {[%emt 0:05:38]} cxd4 {[%emt 0:06:40]} 9. Nxd4 {[%emt 0:00:07]} Qb6 {[%emt 0:13:07]} 10. Nb3 {[%emt 0:03:18]} d6 {[%emt 0:03:45]} 11. Be3 {[%emt 0:01:21]} Qc7 {[%emt 0:00:47]} 12. h3 {[%emt 0:02:47]} f5 {[%emt 0:05:18]} 13. Nd5 {[%emt 0:06:01]} Qd7 {[%emt 0:10:50]} 14. Bxh6 {[%emt 0:02:52]} Bxh6 {[%emt 0:01:34]} 15. exf5 $16 {[%emt 0:01:05]} Bg5 {[%emt 0:11:44]} 16. fxg6 {[%emt 0:08:44]} hxg6 {[%emt 0:00:44]} 17. Qd3 {[%emt 0:07:47]} Kh7 {[%emt 0:02:32]} 18. Qg3 {[%emt 0:01:57]} cxd5 {[%emt 0:06:15]} 19. Qxg5 {[%emt 0:00:19]} e5 {[%emt 0:00:54]} 20. Rad1 {[%emt 0:01:37]} Qf7 {[%emt 0:01:22]} 21. f4 {[%emt 0:03:37]} Qxf4 {[%emt 0:07:51]} 22. Qxf4 {[%emt 0:00:16]} exf4 {[%emt 0:00:35]} 23. Re7+ {[%emt 0:09:09]} Kh6 {[%emt 0:00:27]} 24. Rxd5 {[%emt 0:02:04]} f3 {[%emt 0:01:53]} 25. gxf3 {[%emt 0:02:08]} Bxh3 {[%emt 0:01:04]} 26. Nd4 {[%emt 0:01:13]} Rf6 {[%emt 0:01:41]} 27. Kh2 {[%emt 0:01:13]} Bf5 {[%emt 0:00:08]} 28. Nxf5+ {[%emt 0:02:45]} gxf5 {[%emt 0:00:57]} 29. Rd7 {[%emt 0:00:13]} Kg5 {[%emt 0:01:41]} 30. Kg3 {[%emt 0:01:38]} a5 {[%emt 0:04:59]} 31. R7xd6 {[%emt 0:00:56]} Rxd6 {[%emt 0:01:30]} 32. f4+ {[%emt 0:00:08]} Kh5 {[%emt 0:00:07]} 33. Rxd6 {[%emt 0:00:07]} Rc8 {[%emt 0:00:04]} 34. Rd5 {[%emt 0:05:52]} Rxc2 {[%emt 0:03:40]} 35. Rxf5+ {[%emt 0:00:43]} Kg6 {[%emt 0:00:08]} 36. Rb5 {[%emt 0:01:22]} a4 {[%emt 0:00:18]} 37. a3 {[%emt 0:00:06]} Kf6 {[%emt 0:00:42]} 38. Kg4 {[%emt 0:00:41]} Rg2+ {[%emt 0:00:08]} 39. Kf3 {[%emt 0:00:08]} Rc2 {[%emt 0:00:04]} 40. Ke4 {[%emt 0:00:19]} Re2+ {[%emt 0:00:15]} 41. Kd3 {[%emt 0:00:07]} Re8 {[%emt 0:01:20]} 42. Kc3 {[%emt 0:00:37]} Rc8+ {[%emt 0:00:33]} 43. Kb4 {[%emt 0:00:14]} Ra8 {[%emt 0:00:04]} 44. f5 {[%emt 0:02:06]} Kg5 {[%emt 0:00:52]} 45. Ra5 {[%emt 0:01:08]} Rb8+ {[%emt 0:00:06]} 46. Kxa4 {[%emt 0:00:17]} Rxb2 {[%emt 0:00:06]} 47. Rb5 {[%emt 0:00:07]} Rc2 {[%emt 0:00:06]} 48. Ka5 {[%emt 0:21:36]} Rc8 {[%emt 0:00:16]} 49. a4 {[%emt 0:00:00]} Ra8+ {[%emt 0:00:03]} 50. Kb4 {[%emt 0:00:00]} Kf6 {[%emt 0:00:17]} 51. a5 {[%emt 0:00:00]} Kg5 {[%emt 0:00:07]} 52. Kc5 {[%emt 0:00:00]} Ra6 {[%emt 0:00:34]} 53. f6 {[%emt 0:00:00]} Rxf6 {[%emt 0:01:56]} 54. Rb6 {[%emt 0:00:00]} Rf5+ {[%emt 0:00:14]} 55. Kb4 {[%emt 0:00:00]} Rf1 {[%emt 0:04:41]} 56. Kb5 {[%emt 0:00:00]} Ra1 {[%emt 0:00:15]} 57. a6 {[%emt 0:00:00]} Kf5 {[%emt 0:00:18]} 58. Kc6 {[%emt 0:00:00]} Ke6 {[%emt 0:02:09]} 59. Kb7+ {[%emt 0:00:00]} Kd5 {[%emt 0:00:06]} 60. a7 {[%emt 0:00:00]} Kc5 {[%emt 0:00:12]} 61. Rb2 {[%emt 0:06:30]} Rh1 {[%emt 0:00:51]} 62. a8=Q {[%emt 0:00:00]} Rh7+ {[%emt 0:00:05]} 63. Ka6 {[%emt 0:00:00]} Rh6+ {[%emt 0:00:08]} 64. Ka5 {[%emt 0:00:00]} 1-0